[Event "Titled Tuesday Blitz June 20 Early 2023"]
[White "Omariev, Maksim"]
[Black "Begmuratov, Alisher"]
[WhiteFideId "4193423"]
[BlackFideId "14203367"]
[WhiteElo "2386"]
[BlackElo "2387"]
[Result "0-1"]
[Round "7"]
[TimeControl "180+2"]
[Date "2023.06.20"]
[WhiteClock "0:00:02"]
[BlackClock "0:00:55"]
[Board "60"]

1. g4 {[%clk 0:03:00]}  d6 {[%clk 0:02:59]} 2. Bg2 {[%clk 0:03:01]}  c6 {[%clk 0:02:57]} 3. h3 {[%clk 0:03:01]}  g6 {[%clk 0:02:57]} 4. d4 {[%clk 0:03:01]}  Bg7 {[%clk 0:02:58]} 5. Nf3 {[%clk 0:03:00]}  Nf6 {[%clk 0:02:57]} 6. c4 {[%clk 0:03:00]}  O-O {[%clk 0:02:57]} 7. Nc3 {[%clk 0:03:01]}  d5 {[%clk 0:02:48]} 8. Bg5 {[%clk 0:02:30]}  Ne4 {[%clk 0:02:41]} 9. Qd3 {[%clk 0:02:08]}  Nxc3 {[%clk 0:02:30]} 10. Qxc3 {[%clk 0:02:04]}  c5 {[%clk 0:02:24]} 11. O-O-O {[%clk 0:01:54]}  Nc6 {[%clk 0:02:19]} 12. e3 {[%clk 0:01:53]}  cxd4 {[%clk 0:02:04]} 13. Nxd4 {[%clk 0:01:49]}  Nxd4 {[%clk 0:02:02]} 14. exd4 {[%clk 0:01:50]}  dxc4 {[%clk 0:02:01]} 15. Rhe1 {[%clk 0:01:13]}  Re8 {[%clk 0:01:49]} 16. Kb1 {[%clk 0:01:10]}  Bd7 {[%clk 0:01:43]} 17. Bxb7 {[%clk 0:00:58]}  Rb8 {[%clk 0:01:43]} 18. Bd5 {[%clk 0:00:57]}  Bf5+ {[%clk 0:01:27]} 19. Be4 {[%clk 0:00:47]}  Bxe4+ {[%clk 0:01:24]} 20. Rxe4 {[%clk 0:00:48]}  Qd5 {[%clk 0:01:24]} 21. Rxe7 {[%clk 0:00:06]}  Rxe7 {[%clk 0:01:18]} 22. Bxe7 {[%clk 0:00:05]}  Qe4+ {[%clk 0:01:19]} 23. Ka1 {[%clk 0:00:05]}  Qxe7 {[%clk 0:01:19]} 24. Qxc4 {[%clk 0:00:05]}  Qd7 {[%clk 0:01:15]} 25. Rd2 {[%clk 0:00:04]}  Rc8 {[%clk 0:01:13]} 26. Qf1 {[%clk 0:00:03]}  Bxd4 {[%clk 0:01:11]} 27. Qd1 {[%clk 0:00:02]}  Qc6 {[%clk 0:01:08]} 28. Kb1 {[%clk 0:00:01]}  Qe4+ {[%clk 0:01:07]} 29. Ka1 {[%clk 0:00:01]}  Be5 {[%clk 0:01:02]} 30. f3 {[%clk 0:00:02]}  Qb4 {[%clk 0:00:59]} 31. Kb1 {[%clk 0:00:02]}  Rb8 {[%clk 0:00:58]} 32. b3 {[%clk 0:00:03]}  Qc3 {[%clk 0:00:57]} 33. Rd8+ {[%clk 0:00:02]}  Kg7 {[%clk 0:00:56]} 34. Rxb8 {[%clk 0:00:02]}  Qb2# {[%clk 0:00:55]} 0-1


[Site "https://www.chess.com"]

[Event "Titled Tuesday Blitz June 20 Early 2023"]
[White "Idani, Pouya"]
[Black "MAHanif"]
[WhiteFideId "12510130"]
[WhiteElo "2574"]
[BlackElo "2341"]
[Result "1-0"]
[Round "7"]
[TimeControl "180+2"]
[Date "2023.06.20"]
[WhiteClock "0:02:12"]
[BlackClock "0:01:58"]
[Board "62"]

1. e4 {[%clk 0:02:56]}  Nf6 {[%clk 0:02:53]} 2. e5 {[%clk 0:02:55]}  Nd5 {[%clk 0:02:53]} 3. d4 {[%clk 0:02:56]}  d6 {[%clk 0:02:52]} 4. c4 {[%clk 0:02:57]}  Nb6 {[%clk 0:02:52]} 5. f4 {[%clk 0:02:58]}  c5 {[%clk 0:02:51]} 6. dxc5 {[%clk 0:02:55]}  dxc5 {[%clk 0:02:48]} 7. Qxd8+ {[%clk 0:02:55]}  Kxd8 {[%clk 0:02:49]} 8. Be3 {[%clk 0:02:53]}  Na6 {[%clk 0:02:47]} 9. Nc3 {[%clk 0:02:51]}  Be6 {[%clk 0:02:46]} 10. O-O-O+ {[%clk 0:02:49]}  Kc8 {[%clk 0:02:45]} 11. b3 {[%clk 0:02:46]}  Nb4 {[%clk 0:02:43]} 12. Bxc5 {[%clk 0:02:41]}  Nc6 {[%clk 0:02:36]} 13. Bd3 {[%clk 0:02:39]}  f6 {[%clk 0:02:35]} 14. f5 {[%clk 0:02:35]}  Bf7 {[%clk 0:02:23]} 15. e6 {[%clk 0:02:35]}  Be8 {[%clk 0:02:22]} 16. Be4 {[%clk 0:02:23]}  g6 {[%clk 0:02:19]} 17. Nf3 {[%clk 0:02:17]}  gxf5 {[%clk 0:02:18]} 18. Bxf5 {[%clk 0:02:18]}  Bg6 {[%clk 0:02:16]} 19. g4 {[%clk 0:02:17]}  Bh6+ {[%clk 0:02:14]} 20. Kb1 {[%clk 0:02:16]}  Bf4 {[%clk 0:02:08]} 21. Nd5 {[%clk 0:02:10]}  Nxd5 {[%clk 0:02:06]} 22. cxd5 {[%clk 0:02:11]}  Ne5 {[%clk 0:02:05]} 23. Nxe5 {[%clk 0:02:12]}  Bxe5 {[%clk 0:01:58]} 24. Bxe7 {[%clk 0:02:12]} 1-0


[Site "https://www.chess.com"]

[Event "Titled Tuesday Blitz June 20 Early 2023"]
[White "Agibileg, Uurtsaikh"]
[Black "Wang, Alexander J"]
[WhiteFideId "4901606"]
[BlackFideId "30955270"]
[WhiteElo "2353"]
[BlackElo "2318"]
[Result "1-0"]
[Round "7"]
[TimeControl "180+2"]
[Date "2023.06.20"]
[WhiteClock "0:01:12"]
[BlackClock "0:00:51"]
[Board "63"]

1. d4 {[%clk 0:02:46]}  d5 {[%clk 0:02:49]} 2. c4 {[%clk 0:02:45]}  e6 {[%clk 0:02:49]} 3. Nc3 {[%clk 0:02:46]}  c5 {[%clk 0:02:49]} 4. cxd5 {[%clk 0:02:32]}  exd5 {[%clk 0:02:48]} 5. Nf3 {[%clk 0:02:24]}  Nc6 {[%clk 0:02:48]} 6. e3 {[%clk 0:02:22]}  Nf6 {[%clk 0:02:45]} 7. Bb5 {[%clk 0:02:21]}  Bd7 {[%clk 0:02:43]} 8. O-O {[%clk 0:02:20]}  a6 {[%clk 0:02:42]} 9. Be2 {[%clk 0:02:17]}  c4 {[%clk 0:02:38]} 10. Ne5 {[%clk 0:02:09]}  Bd6 {[%clk 0:02:35]} 11. Nxd7 {[%clk 0:02:06]}  Qxd7 {[%clk 0:02:35]} 12. Bf3 {[%clk 0:02:07]}  Bb4 {[%clk 0:02:32]} 13. Bd2 {[%clk 0:02:04]}  O-O {[%clk 0:02:28]} 14. Rc1 {[%clk 0:01:55]}  Bxc3 {[%clk 0:02:25]} 15. bxc3 {[%clk 0:01:48]}  b5 {[%clk 0:02:24]} 16. g3 {[%clk 0:01:45]}  Rfe8 {[%clk 0:02:22]} 17. Bg2 {[%clk 0:01:45]}  a5 {[%clk 0:02:21]} 18. f3 {[%clk 0:01:46]}  b4 {[%clk 0:02:17]} 19. Re1 {[%clk 0:01:46]}  Rab8 {[%clk 0:02:10]} 20. e4 {[%clk 0:01:45]}  b3 {[%clk 0:02:10]} 21. e5 {[%clk 0:01:45]}  b2 {[%clk 0:01:52]} 22. Rb1 {[%clk 0:01:45]}  a4 {[%clk 0:01:52]} 23. Qxa4 {[%clk 0:01:40]}  Nxe5 {[%clk 0:01:48]} 24. Qxd7 {[%clk 0:01:38]}  Nexd7 {[%clk 0:01:48]} 25. Rxe8+ {[%clk 0:01:29]}  Nxe8 {[%clk 0:01:46]} 26. Kf1 {[%clk 0:01:29]}  Rb7 {[%clk 0:01:36]} 27. Ke1 {[%clk 0:01:28]}  Nd6 {[%clk 0:01:35]} 28. Kd1 {[%clk 0:01:25]}  f5 {[%clk 0:01:11]} 29. Kc2 {[%clk 0:01:24]}  Nb5 {[%clk 0:01:05]} 30. Rxb2 {[%clk 0:01:23]}  Na3+ {[%clk 0:01:04]} 31. Kc1 {[%clk 0:01:22]}  Rxb2 {[%clk 0:01:04]} 32. Kxb2 {[%clk 0:01:23]}  Nb5 {[%clk 0:01:05]} 33. a4 {[%clk 0:01:14]}  Nc7 {[%clk 0:01:03]} 34. Bf4 {[%clk 0:01:14]}  Ne6 {[%clk 0:01:02]} 35. Bd6 {[%clk 0:01:13]}  Kf7 {[%clk 0:00:54]} 36. f4 {[%clk 0:01:13]}  Ke8 {[%clk 0:00:51]} 37. Bxd5 {[%clk 0:01:12]} 1-0


[Site "https://www.chess.com"]

[Event "Titled Tuesday Blitz June 20 Early 2023"]
[White "Degenbaev, Aziz"]
[Black "Narayanan.S.L"]
[WhiteFideId "13802640"]
[BlackFideId "5058422"]
[WhiteElo "2152"]
[BlackElo "2563"]
[Result "0-1"]
[Round "7"]
[TimeControl "180+2"]
[Date "2023.06.20"]
[WhiteClock "0:00:44"]
[BlackClock "0:02:39"]
[Board "64"]

1. e4 {[%clk 0:03:00]}  c6 {[%clk 0:02:59]} 2. d4 {[%clk 0:03:00]}  d5 {[%clk 0:02:59]} 3. e5 {[%clk 0:03:01]}  Bf5 {[%clk 0:02:59]} 4. Nd2 {[%clk 0:03:01]}  h5 {[%clk 0:02:59]} 5. Nb3 {[%clk 0:02:57]}  a5 {[%clk 0:02:59]} 6. a4 {[%clk 0:02:57]}  Na6 {[%clk 0:02:58]} 7. c3 {[%clk 0:02:55]}  e6 {[%clk 0:02:58]} 8. Nf3 {[%clk 0:02:53]}  Ne7 {[%clk 0:02:58]} 9. Be2 {[%clk 0:02:53]}  Bg6 {[%clk 0:02:58]} 10. O-O {[%clk 0:02:51]}  Nf5 {[%clk 0:02:58]} 11. Bd2 {[%clk 0:02:44]}  Be7 {[%clk 0:02:58]} 12. h3 {[%clk 0:02:30]}  h4 {[%clk 0:02:57]} 13. Ne1 {[%clk 0:02:24]}  O-O {[%clk 0:02:57]} 14. Nd3 {[%clk 0:02:20]}  b6 {[%clk 0:02:57]} 15. Nf4 {[%clk 0:02:20]}  Bh7 {[%clk 0:02:55]} 16. Kh2 {[%clk 0:02:06]}  c5 {[%clk 0:02:55]} 17. g4 {[%clk 0:02:07]}  hxg3+ {[%clk 0:02:54]} 18. fxg3 {[%clk 0:02:07]}  cxd4 {[%clk 0:02:54]} 19. cxd4 {[%clk 0:02:04]}  Nb4 {[%clk 0:02:54]} 20. Ng2 {[%clk 0:01:38]}  Rc8 {[%clk 0:02:50]} 21. Bg4 {[%clk 0:01:19]}  Nc2 {[%clk 0:02:45]} 22. Rc1 {[%clk 0:01:18]}  Ncxd4 {[%clk 0:02:45]} 23. Nxd4 {[%clk 0:01:12]}  Nxd4 {[%clk 0:02:45]} 24. Rxc8 {[%clk 0:00:59]}  Qxc8 {[%clk 0:02:46]} 25. Bxa5 {[%clk 0:01:00]}  bxa5 {[%clk 0:02:41]} 26. Qxd4 {[%clk 0:00:59]}  Qc2 {[%clk 0:02:41]} 27. Rf2 {[%clk 0:00:58]}  Bc5 {[%clk 0:02:37]} 28. Rxc2 {[%clk 0:00:57]}  Bxd4 {[%clk 0:02:38]} 29. Re2 {[%clk 0:00:55]}  Rb8 {[%clk 0:02:38]} 30. Nf4 {[%clk 0:00:52]}  Rxb2 {[%clk 0:02:38]} 31. Rxb2 {[%clk 0:00:51]}  Bxb2 {[%clk 0:02:39]} 32. Ne2 {[%clk 0:00:44]}  Bxe5 {[%clk 0:02:39]} 0-1


[Site "https://www.chess.com"]

[Event "Titled Tuesday Blitz June 20 Early 2023"]
[White "Aldokhin, Ivan"]
[Black "Demidov, Mikhail"]
[WhiteFideId "24115720"]
[BlackFideId "4197143"]
[WhiteElo "2322"]
[BlackElo "2500"]
[Result "0-1"]
[Round "7"]
[TimeControl "180+2"]
[Date "2023.06.20"]
[WhiteClock "0:00:01"]
[BlackClock "0:00:43"]
[Board "66"]

1. e4 {[%clk 0:03:00]}  Nf6 {[%clk 0:03:00]} 2. e5 {[%clk 0:03:00]}  Nd5 {[%clk 0:03:00]} 3. Nc3 {[%clk 0:03:01]}  c6 {[%clk 0:03:00]} 4. Nxd5 {[%clk 0:03:00]}  cxd5 {[%clk 0:03:01]} 5. f4 {[%clk 0:03:01]}  Nc6 {[%clk 0:03:01]} 6. d4 {[%clk 0:03:02]}  d6 {[%clk 0:03:01]} 7. c3 {[%clk 0:02:58]}  Bf5 {[%clk 0:03:01]} 8. Nf3 {[%clk 0:02:43]}  e6 {[%clk 0:03:01]} 9. Bd3 {[%clk 0:02:43]}  Bg6 {[%clk 0:02:53]} 10. O-O {[%clk 0:02:42]}  Be7 {[%clk 0:02:52]} 11. Be3 {[%clk 0:01:58]}  O-O {[%clk 0:02:51]} 12. Bxg6 {[%clk 0:01:44]}  hxg6 {[%clk 0:02:49]} 13. exd6 {[%clk 0:01:44]}  Bxd6 {[%clk 0:02:47]} 14. Ne5 {[%clk 0:01:33]}  Nb8 {[%clk 0:02:41]} 15. Qg4 {[%clk 0:01:28]}  Nd7 {[%clk 0:02:39]} 16. Rf3 {[%clk 0:00:29]}  Nf6 {[%clk 0:02:36]} 17. Qh4 {[%clk 0:00:29]}  Ne4 {[%clk 0:02:31]} 18. Qe1 {[%clk 0:00:30]}  Bxe5 {[%clk 0:02:17]} 19. fxe5 {[%clk 0:00:27]}  b5 {[%clk 0:02:10]} 20. Qe2 {[%clk 0:00:12]}  Rb8 {[%clk 0:02:08]} 21. a3 {[%clk 0:00:11]}  a5 {[%clk 0:02:08]} 22. Raf1 {[%clk 0:00:11]}  Qd7 {[%clk 0:02:04]} 23. h4 {[%clk 0:00:09]}  b4 {[%clk 0:02:04]} 24. axb4 {[%clk 0:00:08]}  axb4 {[%clk 0:02:05]} 25. Rh3 {[%clk 0:00:04]}  bxc3 {[%clk 0:02:02]} 26. bxc3 {[%clk 0:00:05]}  Nxc3 {[%clk 0:02:00]} 27. Qg4 {[%clk 0:00:05]}  Qb5 {[%clk 0:01:46]} 28. h5 {[%clk 0:00:03]}  Qe2 {[%clk 0:01:43]} 29. Qxe2 {[%clk 0:00:02]}  Nxe2+ {[%clk 0:01:43]} 30. Kf2 {[%clk 0:00:02]}  Nc3 {[%clk 0:01:39]} 31. h6 {[%clk 0:00:02]}  g5 {[%clk 0:01:29]} 32. hxg7 {[%clk 0:00:02]}  Kxg7 {[%clk 0:01:29]} 33. Kf3 {[%clk 0:00:02]}  Ne4 {[%clk 0:01:27]} 34. Kg4 {[%clk 0:00:02]}  Kg6 {[%clk 0:01:16]} 35. Rfh1 {[%clk 0:00:01]}  f5+ {[%clk 0:01:16]} 36. exf6 {[%clk 0:00:01]}  Nxf6+ {[%clk 0:01:15]} 37. Kg3 {[%clk 0:00:02]}  Ne4+ {[%clk 0:01:07]} 38. Kg4 {[%clk 0:00:02]}  Nf6+ {[%clk 0:00:46]} 39. Kg3 {[%clk 0:00:03]}  Rb3 {[%clk 0:00:45]} 40. Rh6+ {[%clk 0:00:03]}  Kg7 {[%clk 0:00:44]} 41. Kf3 {[%clk 0:00:02]}  Ng8+ {[%clk 0:00:43]} 42. Ke2 {[%clk 0:00:01]}  Nxh6 {[%clk 0:00:43]} 0-1


[Site "https://www.chess.com"]

[Event "Titled Tuesday Blitz June 20 Early 2023"]
[White "MKlose11"]
[Black "Grandelius, Nils"]
[BlackFideId "1710400"]
[WhiteElo "2574"]
[BlackElo "2573"]
[Result "0-1"]
[Round "7"]
[TimeControl "180+2"]
[Date "2023.06.20"]
[WhiteClock "0:00:16"]
[BlackClock "0:01:38"]
[Board "67"]

1. e4 {[%clk 0:03:00]}  e5 {[%clk 0:02:58]} 2. Nf3 {[%clk 0:03:00]}  Nc6 {[%clk 0:02:58]} 3. d4 {[%clk 0:03:01]}  exd4 {[%clk 0:02:58]} 4. Bc4 {[%clk 0:03:01]}  g6 {[%clk 0:02:49]} 5. Nxd4 {[%clk 0:02:49]}  Bg7 {[%clk 0:02:48]} 6. Be3 {[%clk 0:02:39]}  Qf6 {[%clk 0:02:41]} 7. c3 {[%clk 0:02:33]}  Qe7 {[%clk 0:02:41]} 8. Nxc6 {[%clk 0:02:22]}  dxc6 {[%clk 0:02:40]} 9. Nd2 {[%clk 0:02:21]}  Nf6 {[%clk 0:02:40]} 10. f3 {[%clk 0:02:17]}  Nd5 {[%clk 0:02:28]} 11. exd5 {[%clk 0:01:58]}  Qxe3+ {[%clk 0:02:28]} 12. Qe2 {[%clk 0:01:58]}  Qxe2+ {[%clk 0:02:27]} 13. Kxe2 {[%clk 0:01:59]}  cxd5 {[%clk 0:02:27]} 14. Bxd5 {[%clk 0:02:00]}  O-O {[%clk 0:02:27]} 15. Rad1 {[%clk 0:01:42]}  a5 {[%clk 0:02:19]} 16. Rhe1 {[%clk 0:01:40]}  a4 {[%clk 0:02:18]} 17. a3 {[%clk 0:01:36]}  Ra6 {[%clk 0:02:18]} 18. Kd3 {[%clk 0:01:22]}  Rd6 {[%clk 0:01:58]} 19. Kc4 {[%clk 0:01:18]}  Rfd8 {[%clk 0:01:52]} 20. Ne4 {[%clk 0:00:26]}  Rxd5 {[%clk 0:01:52]} 21. Rxd5 {[%clk 0:00:27]}  Be6 {[%clk 0:01:52]} 22. Rd1 {[%clk 0:00:19]}  c6 {[%clk 0:01:43]} 23. Kc5 {[%clk 0:00:18]}  cxd5 {[%clk 0:01:38]} 24. Nd6 {[%clk 0:00:16]}  Bf8 {[%clk 0:01:38]} 0-1


[Site "https://www.chess.com"]

[Event "Titled Tuesday Blitz June 20 Early 2023"]
[White "brm72"]
[Black "Christiansen, Johan-Sebastian"]
[BlackFideId "1512668"]
[WhiteElo "2559"]
[BlackElo "2531"]
[Result "0-1"]
[Round "7"]
[TimeControl "180+2"]
[Date "2023.06.20"]
[WhiteClock "0:00:00"]
[BlackClock "0:00:54"]
[Board "68"]

1. e4 {[%clk 0:03:00]}  e5 {[%clk 0:03:00]} 2. Nf3 {[%clk 0:03:00]}  Nc6 {[%clk 0:03:00]} 3. d4 {[%clk 0:03:01]}  exd4 {[%clk 0:03:00]} 4. Nxd4 {[%clk 0:03:02]}  Nf6 {[%clk 0:03:00]} 5. Nxc6 {[%clk 0:03:02]}  bxc6 {[%clk 0:03:01]} 6. e5 {[%clk 0:03:02]}  Qe7 {[%clk 0:03:01]} 7. Qe2 {[%clk 0:03:03]}  Nd5 {[%clk 0:03:01]} 8. h4 {[%clk 0:03:03]}  a5 {[%clk 0:03:00]} 9. c4 {[%clk 0:03:03]}  Nb6 {[%clk 0:02:57]} 10. Nd2 {[%clk 0:02:46]}  a4 {[%clk 0:02:55]} 11. Nf3 {[%clk 0:02:13]}  Ba6 {[%clk 0:02:54]} 12. Qc2 {[%clk 0:02:11]}  f6 {[%clk 0:02:23]} 13. Bd3 {[%clk 0:01:36]}  fxe5 {[%clk 0:02:22]} 14. Bg5 {[%clk 0:01:34]}  Qe6 {[%clk 0:01:52]} 15. b3 {[%clk 0:01:27]}  Bb4+ {[%clk 0:01:47]} 16. Kf1 {[%clk 0:01:24]}  e4 {[%clk 0:01:26]} 17. Bxe4 {[%clk 0:01:09]}  axb3 {[%clk 0:01:25]} 18. Qb2 {[%clk 0:00:08]}  Nxc4 {[%clk 0:01:08]} 19. Qxg7 {[%clk 0:00:07]}  Rg8 {[%clk 0:01:06]} 20. Qxh7 {[%clk 0:00:05]}  b2 {[%clk 0:01:00]} 21. Rd1 {[%clk 0:00:00]}  Nd2+ {[%clk 0:00:54]} 0-1


[Site "https://www.chess.com"]

[Event "Titled Tuesday Blitz June 20 Early 2023"]
[White "Avinash Ramesh"]
[Black "Leenhouts, Koen"]
[WhiteFideId "45018340"]
[BlackFideId "1008439"]
[WhiteElo "2300"]
[BlackElo "2409"]
[Result "1-0"]
[Round "7"]
[TimeControl "180+2"]
[Date "2023.06.20"]
[WhiteClock "0:00:48"]
[BlackClock "0:00:07"]
[Board "70"]

1. d4 {[%clk 0:03:00]}  Nf6 {[%clk 0:02:58]} 2. c4 {[%clk 0:03:00]}  g6 {[%clk 0:02:57]} 3. Nf3 {[%clk 0:03:00]}  Bg7 {[%clk 0:02:57]} 4. g3 {[%clk 0:03:01]}  c6 {[%clk 0:02:57]} 5. Bg2 {[%clk 0:03:02]}  d5 {[%clk 0:02:58]} 6. cxd5 {[%clk 0:03:02]}  cxd5 {[%clk 0:02:59]} 7. O-O {[%clk 0:03:03]}  O-O {[%clk 0:02:59]} 8. Ne5 {[%clk 0:03:04]}  Ng4 {[%clk 0:02:57]} 9. Bf4 {[%clk 0:02:57]}  Nxe5 {[%clk 0:02:53]} 10. Bxe5 {[%clk 0:02:57]}  Bxe5 {[%clk 0:02:36]} 11. dxe5 {[%clk 0:02:56]}  Be6 {[%clk 0:02:37]} 12. Nc3 {[%clk 0:02:56]}  Nc6 {[%clk 0:02:37]} 13. Bxd5 {[%clk 0:02:43]}  Nxe5 {[%clk 0:02:15]} 14. Bxe6 {[%clk 0:02:42]}  fxe6 {[%clk 0:02:16]} 15. Qb3 {[%clk 0:02:43]}  Qb6 {[%clk 0:02:13]} 16. Qxb6 {[%clk 0:02:42]}  axb6 {[%clk 0:02:12]} 17. Rfd1 {[%clk 0:02:41]}  Rfd8 {[%clk 0:02:10]} 18. a3 {[%clk 0:02:39]}  Kf7 {[%clk 0:02:03]} 19. Rxd8 {[%clk 0:02:38]}  Rxd8 {[%clk 0:02:02]} 20. Rd1 {[%clk 0:02:39]}  Rc8 {[%clk 0:02:01]} 21. Ne4 {[%clk 0:02:26]}  Rc2 {[%clk 0:01:38]} 22. Rd2 {[%clk 0:02:24]}  Rc1+ {[%clk 0:01:38]} 23. Kg2 {[%clk 0:02:24]}  h6 {[%clk 0:01:38]} 24. h4 {[%clk 0:02:17]}  Ke8 {[%clk 0:01:28]} 25. Rd4 {[%clk 0:02:14]}  Rc2 {[%clk 0:01:26]} 26. Rb4 {[%clk 0:02:10]}  Rxe2 {[%clk 0:01:19]} 27. Kf1 {[%clk 0:02:10]}  Rc2 {[%clk 0:01:14]} 28. Rxb6 {[%clk 0:02:10]}  Nd3 {[%clk 0:00:44]} 29. Rxe6 {[%clk 0:02:06]}  Kf7 {[%clk 0:00:43]} 30. Rb6 {[%clk 0:02:05]}  Rxb2 {[%clk 0:00:43]} 31. Rxb2 {[%clk 0:01:49]}  Nxb2 {[%clk 0:00:44]} 32. Ke2 {[%clk 0:01:46]}  b6 {[%clk 0:00:42]} 33. Nc3 {[%clk 0:01:36]}  Ke6 {[%clk 0:00:39]} 34. Kf3 {[%clk 0:01:32]}  Ke5 {[%clk 0:00:37]} 35. Kg4 {[%clk 0:01:05]}  Kd4 {[%clk 0:00:34]} 36. Ne2+ {[%clk 0:01:06]}  Kc5 {[%clk 0:00:20]} 37. Nf4 {[%clk 0:01:06]}  Nc4 {[%clk 0:00:21]} 38. Nxg6 {[%clk 0:01:02]}  Nxa3 {[%clk 0:00:21]} 39. Ne5 {[%clk 0:00:53]}  b5 {[%clk 0:00:21]} 40. Kh5 {[%clk 0:00:54]}  Nc4 {[%clk 0:00:21]} 41. Nd3+ {[%clk 0:00:52]}  Kd4 {[%clk 0:00:21]} 42. Nb4 {[%clk 0:00:53]}  Kc5 {[%clk 0:00:21]} 43. Nc2 {[%clk 0:00:53]}  b4 {[%clk 0:00:18]} 44. Nxb4 {[%clk 0:00:52]}  Kxb4 {[%clk 0:00:19]} 45. Kxh6 {[%clk 0:00:53]}  Kc5 {[%clk 0:00:19]} 46. Kg6 {[%clk 0:00:53]}  Ne5+ {[%clk 0:00:18]} 47. Kf5 {[%clk 0:00:53]}  Kd6 {[%clk 0:00:18]} 48. h5 {[%clk 0:00:52]}  Nf7 {[%clk 0:00:18]} 49. Kg6 {[%clk 0:00:50]}  Ke6 {[%clk 0:00:17]} 50. f4 {[%clk 0:00:48]}  Nh8+ {[%clk 0:00:15]} 51. Kg7 {[%clk 0:00:48]}  Nf7 {[%clk 0:00:13]} 52. g4 {[%clk 0:00:49]}  Nh8 {[%clk 0:00:10]} 53. Kxh8 {[%clk 0:00:48]}  Kf7 {[%clk 0:00:07]} 54. Kh7 {[%clk 0:00:48]} 1-0


[Site "https://www.chess.com"]

[Event "Titled Tuesday Blitz June 20 Early 2023"]
[White "Sattarov, Bobir"]
[Black "Ambartsumova, Karina"]
[WhiteFideId "14203081"]
[BlackFideId "4166299"]
[WhiteElo "2351"]
[BlackElo "2240"]
[Result "1-0"]
[Round "7"]
[TimeControl "180+2"]
[Date "2023.06.20"]
[WhiteClock "0:00:23"]
[BlackClock "0:00:00"]
[Board "71"]

1. e4 {[%clk 0:03:00]}  e5 {[%clk 0:03:00]} 2. Nf3 {[%clk 0:03:00]}  Nc6 {[%clk 0:03:00]} 3. Nc3 {[%clk 0:03:01]}  Nf6 {[%clk 0:03:00]} 4. a3 {[%clk 0:03:01]}  d5 {[%clk 0:02:53]} 5. Bb5 {[%clk 0:03:01]}  d4 {[%clk 0:02:47]} 6. Ne2 {[%clk 0:02:59]}  Bd6 {[%clk 0:02:47]} 7. d3 {[%clk 0:02:58]}  O-O {[%clk 0:02:47]} 8. Bxc6 {[%clk 0:02:57]}  bxc6 {[%clk 0:02:47]} 9. O-O {[%clk 0:02:57]}  Ne8 {[%clk 0:02:40]} 10. Nd2 {[%clk 0:02:56]}  g6 {[%clk 0:02:33]} 11. f4 {[%clk 0:02:53]}  exf4 {[%clk 0:02:24]} 12. Nxf4 {[%clk 0:02:52]}  f5 {[%clk 0:02:24]} 13. exf5 {[%clk 0:02:45]}  Bxf5 {[%clk 0:02:23]} 14. Nc4 {[%clk 0:02:44]}  Ng7 {[%clk 0:02:19]} 15. Qf3 {[%clk 0:02:35]}  Qd7 {[%clk 0:02:15]} 16. Nxd6 {[%clk 0:02:31]}  cxd6 {[%clk 0:02:15]} 17. Bd2 {[%clk 0:02:24]}  Rae8 {[%clk 0:02:14]} 18. Qg3 {[%clk 0:02:20]}  Re5 {[%clk 0:01:59]} 19. Rae1 {[%clk 0:02:11]}  Rfe8 {[%clk 0:01:59]} 20. Rxe5 {[%clk 0:02:11]}  dxe5 {[%clk 0:01:55]} 21. Ne2 {[%clk 0:02:10]}  e4 {[%clk 0:01:49]} 22. dxe4 {[%clk 0:02:09]}  Bxe4 {[%clk 0:01:49]} 23. Qf2 {[%clk 0:01:48]}  d3 {[%clk 0:01:35]} 24. cxd3 {[%clk 0:01:41]}  Bxd3 {[%clk 0:01:36]} 25. Re1 {[%clk 0:01:41]}  Nf5 {[%clk 0:01:10]} 26. Nf4 {[%clk 0:01:37]}  Rxe1+ {[%clk 0:00:51]} 27. Qxe1 {[%clk 0:01:38]}  Qd4+ {[%clk 0:00:51]} 28. Kh1 {[%clk 0:01:38]}  Qe4 {[%clk 0:00:50]} 29. Nxd3 {[%clk 0:01:12]}  Qxd3 {[%clk 0:00:49]} 30. Bc3 {[%clk 0:01:04]}  Ne3 {[%clk 0:00:27]} 31. h3 {[%clk 0:01:03]}  Qe4 {[%clk 0:00:18]} 32. Qe2 {[%clk 0:01:02]}  Qb1+ {[%clk 0:00:15]} 33. Qe1 {[%clk 0:00:51]}  Qe4 {[%clk 0:00:14]} 34. Qg1 {[%clk 0:00:38]}  a6 {[%clk 0:00:09]} 35. Bd2 {[%clk 0:00:37]}  Nf5 {[%clk 0:00:10]} 36. Qf2 {[%clk 0:00:33]}  Qb1+ {[%clk 0:00:07]} 37. Kh2 {[%clk 0:00:33]}  Qxb2 {[%clk 0:00:08]} 38. Qf4 {[%clk 0:00:33]}  Qd4 {[%clk 0:00:06]} 39. Qb8+ {[%clk 0:00:28]}  Kf7 {[%clk 0:00:04]} 40. Bf4 {[%clk 0:00:29]}  Qd7 {[%clk 0:00:03]} 41. Qh8 {[%clk 0:00:24]}  Ke6 {[%clk 0:00:03]} 42. Qe5+ {[%clk 0:00:23]}  Kf7 {[%clk 0:00:03]} 43. Qh8 {[%clk 0:00:23]}  Ke6 {[%clk 0:00:02]} 44. Qg8+ {[%clk 0:00:23]}  Qf7 {[%clk 0:00:01]} 45. Qc8+ {[%clk 0:00:24]}  Qd7 {[%clk 0:00:00]} 46. Qxa6 {[%clk 0:00:23]} 1-0


[Site "https://www.chess.com"]